fUSD/lending_fUSD_20240428
["ID","MTS","AMOUNT","RATE_DAILY","PERIOD"]
[11457,1714327929939,-65.04697988,0.0001315,2]
[11458,1714327929949,-1189.44,0.0001315,2]
[11459,1714327929958,-1439.92,0.0001315,2]
[11460,1714327929968,-1238.95765956,0.0001315,2]
[11461,1714327929981,-658.17234044,0.0001315,2]
[11463,1714327930003,-82.1884276,0.0001315,2]
[11464,1714327930014,-652.39,0.0001315,2]
[11465,1714327930024,-287.4624424,0.0001315,2]
[11466,1714327930036,-212.5375576,0.0001315,2]
[11467,1714327930046,-464.04877183,0.0001315,2]
[11469,1714327930066,-41.70191151,0.0001315,2]
[11470,1714327930079,-458.29808849,0.0001315,2]
[11471,1714327930089,-500.0,0.0001315,2]
[11473,1714327930111,-252.97,0.0001315,2]
[11474,1714327930123,-205.32808849,0.0001315,2]
[11475,1714327930132,-794.74630509,0.0001315,2]
[11476,1714327930565,-8.694e-05,0.0001315,2]
[11477,1714327930935,-1653.65360797,0.0001315,2]
[11479,1714327930954,-1078.81,0.0001315,2]
[11480,1714327930963,-500.0,0.0001315,2]
[11481,1714327930973,-1630.06,0.0001315,2]
[11482,1714327930982,-500.0,0.0001315,2]
[11483,1714327930991,-909.28,0.0001315,2]
[11484,1714327931000,-1319.4,0.0001315,2]
[11485,1714327931010,-500.0,0.0001315,2]
[11487,1714327931028,-1245.89,0.0001315,2]
[11488,1714327931038,-500.0,0.0001315,2]
[11489,1714327931047,-584.91,0.0001315,2]
[11491,1714327931066,-775.65,0.0001315,2]
[11492,1714327931076,-849.06,0.0001315,2]
[11493,1714327931085,-500.0,0.0001315,2]
[11494,1714327931095,-500.0,0.0001315,2]
[11495,1714327931104,-500.0,0.0001315,2]
[11497,1714327931123,-545.78,0.0001315,2]
[11498,1714327931132,-2005.3,0.0001315,2]
[11499,1714327931142,-678.75,0.0001315,2]
[11500,1714327931151,-558.96,0.0001315,2]
[11501,1714327931160,-500.0,0.0001315,2]
[11503,1714327931179,-1355.48,0.0001315,2]
[11504,1714327931270,-500.0,0.0001315,2]
[11505,1714327931279,-500.0,0.0001315,2]
[11506,1714327931290,-500.0,0.0001315,2]
[11507,1714327931299,-1562.19,0.0001315,2]
[11509,1714327931318,-500.0,0.0001315,2]
[11510,1714327931327,-582.07,0.0001315,2]
[11511,1714327931338,-1231.29,0.0001315,2]
[11512,1714327931349,-545.02,0.0001315,2]
[11513,1714327931363,-554.2,0.0001315,2]
[11515,1714327931383,-500.0,0.0001315,2]
[11517,1714327931405,-677.88,0.0001315,2]
[11519,1714327931424,-1541.22,0.0001315,2]
[11520,1714327931435,-578.91,0.0001315,2]
[11521,1714327931445,-1220.25,0.0001315,2]
[11523,1714327931466,-1028.06,0.0001315,2]
[11524,1714327931476,-780.64,0.0001315,2]
[11525,1714327931485,-500.0,0.0001315,2]
[11527,1714327931504,-555.12,0.0001315,2]
[11529,1714327931524,-602.89,0.0001315,2]
[11531,1714327931542,-500.0,0.0001315,2]
[11533,1714327931560,-500.0,0.0001315,2]
[11535,1714327931578,-797.41,0.0001315,2]
[11536,1714327931588,-500.0,0.0001315,2]
[11537,1714327931597,-624.48,0.0001315,2]
[11538,1714327931606,-933.77,0.0001315,2]
[11539,1714327931615,-500.0,0.0001315,2]
[11541,1714327931635,-500.0,0.0001315,2]
[11542,1714327931644,-599.68,0.0001315,2]
[11543,1714327931654,-2313.19,0.0001315,2]
[11544,1714327931663,-1132.55,0.0001315,2]
[11545,1714327931672,-1362.9,0.0001315,2]
[11546,1714327931681,-1006.23,0.0001315,2]
[11547,1714327931690,-500.0,0.0001315,2]
[11549,1714327931709,-945.42,0.0001315,2]
[11550,1714327931718,-500.0,0.0001315,2]
[11551,1714327931728,-753.84,0.0001315,2]
[11552,1714327931738,-1229.87,0.0001315,2]
[11553,1714327931747,-500.0,0.0001315,2]
[11554,1714327931756,-503.33,0.0001315,2]
[11555,1714327931766,-713.69,0.0001315,2]
[11556,1714327931774,-1670.88,0.0001315,2]
[11557,1714327931784,-500.0,0.0001315,2]
[11558,1714327931793,-742.48,0.0001315,2]
[11559,1714327931803,-768.77,0.0001315,2]
[11561,1714327931822,-687.59,0.0001315,2]
[11562,1714327931832,-646.2,0.0001315,2]
[11563,1714327931842,-1778.24,0.0001315,2]
[11564,1714327931851,-1142.66,0.0001315,2]
[11565,1714327931860,-507.64,0.0001315,2]
[11566,1714327931870,-515.83,0.0001315,2]
[11567,1714327931879,-500.0,0.0001315,2]
[11569,1714327931898,-1406.26,0.0001315,2]
[11570,1714327931907,-1255.01,0.0001315,2]
[11571,1714327931916,-597.93,0.0001315,2]
[11572,1714327931926,-1615.77,0.0001315,2]
[11573,1714327931935,-500.0,0.0001315,2]
[11574,1714327931944,-535.6,0.0001315,2]
[11575,1714327931954,-500.0,0.0001315,2]
[11577,1714327931971,-500.0,0.0001315,2]
[11578,1714327931981,-517.5,0.0001315,2]
[11579,1714327931991,-963.36,0.0001315,2]
[11580,1714327932001,-595.42,0.0001315,2]
[11581,1714327932010,-500.0,0.0001315,2]
[11583,1714327932028,-548.3,0.0001315,2]
[11584,1714327932037,-999.0,0.0001315,2]
[11585,1714327932047,-542.11,0.0001315,2]
[11586,1714327932056,-500.0,0.0001315,2]
[11587,1714327932065,-688.85,0.0001315,2]
[11589,1714327932083,-2215.33,0.0001315,2]
[11590,1714327932093,-626.13,0.0001315,2]
[11591,1714327932103,-500.0,0.0001315,2]
[11592,1714327932113,-500.0,0.0001315,2]
[11593,1714327932123,-1247.47,0.0001315,2]
[11595,1714327932142,-500.0,0.0001315,2]
[11596,1714327932152,-996.14,0.0001315,2]
[11597,1714327932162,-1997.75,0.0001315,2]
[11598,1714327932171,-500.0,0.0001315,2]
[11599,1714327932181,-1392.83,0.0001315,2]
[11601,1714327932200,-700.68,0.0001315,2]
[11602,1714327932209,-500.0,0.0001315,2]
[11603,1714327932219,-1928.76,0.0001315,2]
[11604,1714327932228,-870.0,0.0001315,2]
[11605,1714327932238,-1000.0,0.0001315,2]
[11607,1714327932256,-500.0,0.0001315,2]
[11608,1714327932266,-500.0,0.0001315,2]
[11609,1714327932276,-973.03,0.0001315,2]
[11610,1714327932297,-500.0,0.0001315,2]
[11611,1714327932306,-1807.39,0.0001315,2]
[11613,1714327932325,-518.13,0.0001315,2]
[11614,1714327932334,-1618.32,0.0001315,2]
[11615,1714327932345,-500.0,0.0001315,2]
[11616,1714327932356,-1065.37,0.0001315,2]
[11617,1714327932366,-521.03,0.0001315,2]
[11619,1714327932384,-568.18,0.0001315,2]
[11620,1714327932394,-593.64,0.0001315,2]
[11621,1714327932404,-645.7,0.0001315,2]
[11623,1714327932422,-1346.78,0.0001315,2]
[11625,1714327932441,-816.47,0.0001315,2]
[11627,1714327932459,-513.17,0.0001315,2]
[11629,1714327932477,-500.0,0.0001315,2]
[11631,1714327932497,-500.0,0.0001315,2]
[11633,1714327932515,-500.0,0.0001315,2]
[11635,1714327932534,-574.0,0.0001315,2]
[11637,1714327932553,-904.78,0.0001315,2]
[11639,1714327932570,-551.24,0.0001315,2]
[11641,1714327932589,-500.0,0.0001315,2]
[11643,1714327932606,-682.57,0.0001315,2]
[11645,1714327932623,-818.9,0.0001315,2]
[11647,1714327932641,-500.0,0.0001315,2]
[11649,1714327932660,-984.25,0.0001315,2]
[11651,1714327932682,-500.0,0.0001315,2]
[11653,1714327932702,-902.19,0.0001315,2]
[11655,1714327932721,-1448.09,0.0001315,2]
[11657,1714327932738,-150.0,0.0001315,2]
[11659,1714327932756,-500.0,0.0001315,2]
[11661,1714327932775,-500.0,0.0001315,2]
[11663,1714327932793,-593.02,0.0001315,2]
[11665,1714327932811,-1208.23,0.0001315,2]
[11667,1714327932831,-1589.78,0.0001315,2]
[11669,1714327932850,-1046.22,0.0001315,2]
[11671,1714327932868,-500.0,0.0001315,2]
[11673,1714327932886,-772.44,0.0001315,2]
[11675,1714327932903,-541.03,0.0001315,2]
[11677,1714327932921,-500.0,0.0001315,2]
[11679,1714327932939,-1205.49,0.0001315,2]
[11681,1714327932957,-652.35,0.0001315,2]
[11683,1714327932975,-500.0,0.0001315,2]
[11685,1714327932992,-775.0,0.0001315,2]
[11687,1714327933009,-714.87,0.0001315,2]
[11689,1714327933028,-500.0,0.0001315,2]
[11691,1714327933046,-756.89,0.0001315,2]
[11693,1714327933064,-232.41392195,0.0001315,2]
[11695,1714327933264,-86.83869362,0.00010958,2]
[11697,1714327933904,-3.70130641,0.00010958,2]
[11699,1714327933925,-136.72530641,0.00010958,2]
[11701,1714327933946,-734.85,0.0001315,2]
[11703,1714327933967,-264.25829999,0.0001315,2]
[11705,1714327933988,-1644.36653818,0.0001315,2]
[11707,1714327934009,-41.62117777,0.0001315,2]
[11709,1714327934332,-642.19288446,0.0001315,2]
[11711,1714327934356,-945.85738768,0.0001315,2]
[11713,1714327934378,-500.0,0.0001315,2]
[11715,1714327934397,-532.78,0.0001315,2]
[11717,1714327934417,-500.0,0.0001315,2]
[11719,1714327934438,-500.0,0.0001315,2]
[11721,1714327934458,-1713.77,0.0001315,2]
[11723,1714327934478,-500.0,0.0001315,2]
[11725,1714327934498,-1815.9,0.0001315,2]
[11727,1714327934519,-1224.72,0.0001315,2]
[11729,1714327934539,-558.97,0.0001315,2]
[11731,1714327934559,-500.0,0.0001315,2]
[11733,1714327934579,-641.19,0.0001315,2]
[11735,1714327934599,-475.18822046,0.0001315,2]
[11737,1714327934619,-565.35,0.0001315,2]
[11739,1714327934639,-932.09,0.0001315,2]
[11741,1714327934659,-1453.55,0.0001315,2]
[11743,1714327934680,-527.58,0.0001315,2]
[11745,1714327934700,-1458.34,0.0001315,2]
[11747,1714327934720,-500.0,0.0001315,2]
[11749,1714327934740,-925.22,0.0001315,2]
[11751,1714327934760,-500.0,0.0001315,2]
[11753,1714327934779,-732.22,0.0001315,2]
[11755,1714327934799,-500.0,0.0001315,2]
[11757,1714327934820,-502.32,0.0001315,2]
[11759,1714327934840,-688.47,0.0001315,2]
[11761,1714327934859,-500.0,0.0001315,2]
[11763,1714327934880,-854.99,0.0001315,2]
[11765,1714327934899,-810.95,0.0001315,2]
[11767,1714327934921,-500.0,0.0001315,2]
[11769,1714327934941,-500.0,0.0001315,2]
[11771,1714327934961,-500.0,0.0001315,2]
[11773,1714327934981,-1243.36,0.0001315,2]
[11775,1714327935000,-500.0,0.0001315,2]
[11777,1714327935019,-1736.13,0.0001315,2]
[11779,1714327935038,-500.0,0.0001315,2]
[11781,1714327935058,-1559.91,0.0001315,2]
[11783,1714327935079,-988.47,0.0001315,2]
[11785,1714327935099,-1958.59,0.0001315,2]
[11787,1714327935120,-1359.52,0.0001315,2]
[11789,1714327935139,-500.0,0.0001315,2]
[11791,1714327935159,-556.94,0.0001315,2]
[11793,1714327935181,-628.53,0.0001315,2]
[11795,1714327935200,-1414.99,0.0001315,2]
[11797,1714327935220,-45095.54,0.0001315,2]
[11799,1714327935241,-530.69,0.0001315,2]
[11801,1714327935261,-500.0,0.0001315,2]
[11803,1714327935281,-1488.53,0.0001315,2]
[11805,1714327935301,-500.0,0.0001315,2]
[11807,1714327935321,-1243.48,0.0001315,2]
[11809,1714327935341,-4295.84,0.0001315,2]
[11811,1714327935366,-500.0,0.0001315,2]
[11813,1714327935386,-632.87,0.0001315,2]
[11815,1714327935407,-500.0,0.0001315,2]
[11817,1714327935428,-1475.93,0.0001315,2]
[11819,1714327935450,-500.0,0.0001315,2]
[11821,1714327935470,-255.19085984,0.0001315,2]
[11823,1714327935491,-1929.02,0.0001315,2]
[11825,1714327935512,-1071.44,0.0001315,2]
[11827,1714327935533,-765.18,0.0001315,2]
[11829,1714327935552,-2344.57,0.0001315,2]
[11831,1714327935572,-500.0,0.0001315,2]
[11833,1714327935599,-505.04554768,0.0001315,2]
[11835,1714327935618,-500.0,0.0001315,2]
[11837,1714327935638,-500.0,0.0001315,2]
[11839,1714327935659,-871.78,0.0001315,2]
[11841,1714327935680,-9091.73,0.0001315,2]
[11843,1714327935700,-2595.55,0.0001315,2]
[11845,1714327935720,-500.0,0.0001315,2]
[11847,1714327935740,-2250.39,0.0001315,2]
[11849,1714327935762,-500.0,0.0001315,2]
[11851,1714327935782,-436.10838852,0.0001315,2]
[11853,1714327935806,-5132.10838852,0.0001315,2]
[11855,1714327935831,-50981.85160898,0.0001315,2]
[11857,1714327935852,-508.0,0.0001315,2]
[11859,1714327935872,-2405.5,0.0001315,2]
[11861,1714327935893,-1929.95,0.0001315,2]
[11862,1714327935903,-2374.97,0.0001315,2]
[11863,1714327935914,-500.0,0.0001315,2]
[11864,1714327935924,-500.0,0.0001315,2]
[11865,1714327935935,-1671.74,0.0001315,2]
[11867,1714327935956,-2184.34,0.0001315,2]
[11869,1714327935976,-500.0,0.0001315,2]
[11871,1714327935996,-2260.54,0.0001315,2]
[11873,1714327936016,-1832.42,0.0001315,2]
[11875,1714327936038,-500.0,0.0001315,2]
[11877,1714327936058,-500.0,0.0001315,2]
[11879,1714327936078,-1477.73,0.0001315,2]
[11881,1714327936101,-500.0,0.0001315,2]
[11883,1714327936123,-695.84,0.0001315,2]
[11885,1714327936146,-500.0,0.0001315,2]
[11887,1714327936164,-1953.6,0.0001315,2]
[11889,1714327936184,-3343.08,0.0001315,2]
[11891,1714327936203,-21057.08,0.0001315,2]
[11893,1714327936223,-2353.99,0.0001315,2]
[11895,1714327936244,-2376.77,0.0001315,2]
[11897,1714327936490,-500.0,0.0001315,2]
[11899,1714327936511,-2235.31,0.0001315,2]
[11901,1714327936531,-1353.02,0.0001315,2]
[11903,1714327936550,-500.0,0.0001315,2]
[11905,1714327936570,-2439.23,0.0001315,2]
[11907,1714327936589,-1223.0,0.0001315,2]
[11909,1714327936610,-1593.98,0.0001315,2]
[11911,1714327936629,-500.0,0.0001315,2]
[11913,1714327936648,-4638.6,0.0001315,2]
[11915,1714327936667,-10234.54,0.0001315,2]
[11917,1714327936686,-500.0,0.0001315,2]
[11919,1714327936706,-500.0,0.0001315,2]
[11921,1714327936725,-1545.21,0.0001315,2]
[11923,1714327936744,-1142.19,0.0001315,2]
[11925,1714327936763,-3093.06,0.0001315,2]
[11927,1714327936782,-2796.37,0.0001315,2]
[11929,1714327936801,-2265.09,0.0001315,2]
[11931,1714327936820,-839.39,0.0001315,2]
[11933,1714327936839,-4270.94,0.0001315,2]
[11935,1714327936858,-500.0,0.0001315,2]
[11937,1714327936878,-5489.49,0.0001315,2]
[11939,1714327936898,-1582.16,0.0001315,2]
[11941,1714327936918,-3085.94,0.0001315,2]
[11943,1714327936937,-2399.9,0.0001315,2]
[11945,1714327936956,-500.0,0.0001315,2]
[11947,1714327936975,-500.0,0.0001315,2]
[11949,1714327936995,-1414.1,0.0001315,2]
[11951,1714327937027,-1435.2,0.0001315,2]
[11953,1714327937048,-1065.58,0.0001315,2]
[11955,1714327937069,-500.0,0.0001315,2]
[11957,1714327937089,-6721.92,0.0001315,2]
[11959,1714327937111,-952.55,0.0001315,2]
[11961,1714327937132,-4628.19,0.0001315,2]
[11963,1714327937153,-2391.0,0.0001315,2]
[11965,1714327937174,-500.0,0.0001315,2]
[11967,1714327937194,-2685.78,0.0001315,2]
[11969,1714327937215,-553.68,0.0001315,2]
[11971,1714327937236,-500.0,0.0001315,2]
[11973,1714327937256,-2871.06,0.0001315,2]
[11975,1714327937277,-1935.27,0.0001315,2]
[11977,1714327937298,-1916.73,0.0001315,2]
[11979,1714327937318,-1187.31,0.0001315,2]
[11981,1714327937338,-500.0,0.0001315,2]
[11983,1714327937362,-1439.11,0.0001315,2]
[11985,1714327937382,-1606.09,0.0001315,2]
[11987,1714327937403,-1432.5,0.0001315,2]
[11989,1714327937422,-531.19,0.0001315,2]
[11991,1714327937447,-4765.67,0.0001315,2]
[11993,1714327937466,-500.47,0.0001315,2]
[11995,1714327937486,-43270.69,0.0001315,2]
[11997,1714327937504,-4906.24,0.0001315,2]
[11999,1714327937523,-7136.72,0.0001315,2]
[12001,1714327937544,-525.49,0.0001315,2]
[12003,1714327937567,-1102.33,0.0001315,2]
[12005,1714327937586,-1398.74,0.0001315,2]
[12007,1714327937608,-500.0,0.0001315,2]
[12009,1714327937627,-1022.43,0.0001315,2]
[12011,1714327937647,-2500.48,0.0001315,2]
[12013,1714327937666,-1168.0,0.0001315,2]
[12015,1714327937686,-720.0,0.00013288,2]
[12017,1714327937705,-500.0,0.0001341,2]
[12019,1714327937725,-500.0,0.00013424,2]
[12021,1714327937748,-515.13,0.00013424,2]
[12023,1714327937767,-500.0,0.00013424,2]
[12025,1714327937786,-500.0,0.00013424,2]
[12027,1714327937804,-524.32,0.00013424,2]
[12029,1714327937823,-620.38,0.00013424,2]
[12031,1714327937843,-538.92,0.00013424,2]
[12033,1714327937862,-663.22,0.00013424,2]
[12035,1714327937881,-895.1,0.00013424,2]
[12037,1714327937899,-500.0,0.00013424,2]
[12039,1714327937918,-500.0,0.00013424,2]
[12041,1714327937937,-500.0,0.00013424,2]
[12043,1714327937956,-534.74,0.00013424,2]
[12045,1714327937975,-1185.83,0.00013424,2]
[12047,1714327937994,-495.73402874,0.00013424,2]
[12049,1714327938013,-1318.03,0.00013424,2]
[12051,1714327938032,-500.0,0.00013424,2]
[12053,1714327938053,-515.14,0.00013424,2]
[12055,1714327938071,-916.96,0.00013424,2]
[12057,1714327938090,-1227.32,0.00013424,2]
[12059,1714327938110,-500.0,0.00013424,2]
[12061,1714327938129,-500.0,0.00013424,2]
[12063,1714327938147,-500.0,0.00013424,2]
[12065,1714327938165,-1043.91,0.00013424,2]
[12067,1714327938184,-500.0,0.00013424,2]
[12069,1714327938203,-500.0,0.00013424,2]
[12071,1714327938222,-500.0,0.00013424,2]
[12073,1714327938240,-635.46,0.00013424,2]
[12075,1714327938258,-500.0,0.00013424,2]
[12077,1714327938277,-500.0,0.00013424,2]
[12079,1714327938295,-500.0,0.00013424,2]
[12081,1714327938313,-2601.22,0.00013424,2]
[12083,1714327938331,-583.90685075,0.00013424,2]
[12085,1714327938350,-500.03,0.00013424,2]
[12087,1714327938372,-500.0,0.00013424,2]
[12089,1714327938391,-500.0,0.00013424,2]
[12091,1714327938410,-1104.97,0.00013424,2]
[12093,1714327938429,-878.68,0.00013424,2]
[12095,1714327938447,-500.0,0.00013424,2]
[12097,1714327938465,-500.0,0.00013424,2]
[12099,1714327938484,-500.0,0.00013424,2]
[12101,1714327938502,-500.0,0.00013424,2]
[12103,1714327938521,-634.21,0.00013424,2]
[12105,1714327938539,-1071.7,0.00013424,2]
[12107,1714327938557,-500.0,0.00013424,2]
[12109,1714327938575,-160.41637386,0.00013424,2]
[12111,1714327938594,-572.1,0.00013424,2]
[12113,1714327938613,-559.56070707,0.00013424,2]
[12115,1714327938631,-1083.93,0.00013424,2]
[12117,1714327938650,-500.0,0.00013424,2]
[12119,1714327938669,-1452.61,0.00013424,2]
[12121,1714327938687,-500.0,0.00013424,2]
[12123,1714327938706,-535.46,0.00013424,2]
[12125,1714327938725,-500.0,0.00013424,2]
[12127,1714327938744,-1524.72,0.00013424,2]
[12129,1714327938763,-984.45,0.00013424,2]
[12131,1714327938782,-643.01,0.00013424,2]
[12133,1714327938800,-932.25,0.00013424,2]
[12135,1714327938818,-524.24,0.00013424,2]
[12137,1714327938836,-796.96,0.00013424,2]
[12139,1714327938982,-900.78,0.00013424,2]
[12141,1714327939000,-531.18,0.00013424,2]
[12143,1714327939018,-1439.92,0.00013424,2]
[12145,1714327939036,-502.52,0.00013424,2]
[12147,1714327939056,-500.0,0.00013424,2]
[12149,1714327939075,-500.0,0.00013424,2]
[12151,1714327939094,-500.0,0.00013424,2]
[12153,1714327939113,-500.0,0.00013424,2]
[12155,1714327939131,-500.0,0.00013424,2]
[12157,1714327939149,-500.0,0.00013424,2]
[12159,1714327939167,-1319.4,0.00013424,2]
[12161,1714327939185,-1798.47,0.00013424,2]
[12163,1714327939204,-500.0,0.00013424,2]
[12165,1714327939223,-869.51,0.00013424,2]
[12166,1714327939233,-775.65,0.00013424,2]
[12167,1714327939242,-849.06,0.00013424,2]
[12169,1714327939260,-500.0,0.00013424,2]
[12171,1714327939279,-500.0,0.00013424,2]
[12173,1714327939298,-2005.3,0.00013424,2]
[12175,1714327939316,-558.96,0.00013424,2]
[12177,1714327939335,-905.49,0.00013424,2]
[12179,1714327939353,-500.0,0.00013424,2]
[12180,1714327939367,-500.0,0.00013424,2]
[12181,1714327939376,-500.0,0.00013424,2]
[12182,1714327939386,-1562.19,0.00013424,2]
[12183,1714327939395,-1336.96,0.00013424,2]
[12185,1714327939413,-582.07,0.00013424,2]
[12187,1714327939432,-545.02,0.00013424,2]
[12189,1714327939451,-1111.8,0.00013424,2]
[12191,1714327939470,-926.22,0.00013424,2]
[12193,1714327939489,-500.0,0.00013424,2]
[12195,1714327939508,-578.91,0.00013424,2]
[12197,1714327939527,-500.0,0.00013424,2]
[12199,1714327939546,-780.64,0.00013424,2]
[12201,1714327939565,-1073.37,0.00013424,2]
[12203,1714327939583,-602.89,0.00013424,2]
[12205,1714327939601,-184.7776611,0.00013424,2]
[12206,1714327939610,-500.0,0.00013424,2]
[12207,1714327939619,-500.0,0.00013424,2]
[12209,1714327939638,-797.41,0.00013424,2]
[12211,1714327939656,-624.48,0.00013424,2]
[12213,1714327939675,-500.0,0.00013424,2]
[12215,1714327939693,-500.0,0.00013424,2]
[12217,1714327939711,-2313.19,0.00013424,2]
[12219,1714327939729,-1006.23,0.00013424,2]
[12220,1714327939738,-1132.55,0.00013424,2]
[12221,1714327939747,-500.0,0.00013424,2]
[12223,1714327939764,-945.42,0.00013424,2]
[12225,1714327939782,-753.84,0.00013424,2]
[12227,1714327939801,-500.0,0.00013424,2]
[12229,1714327939819,-713.69,0.00013424,2]
[12231,1714327939836,-500.0,0.00013424,2]
[12232,1714327939847,-742.48,0.00013424,2]
[12233,1714327939856,-768.77,0.00013424,2]
[12235,1714327939875,-687.59,0.00013424,2]
[12237,1714327939893,-1778.24,0.00013424,2]
[12239,1714327939911,-507.64,0.00013424,2]
[12241,1714327939929,-500.0,0.00013424,2]
[12243,1714327939948,-1406.26,0.00013424,2]
[12245,1714327939967,-597.93,0.00013424,2]
[12247,1714327939984,-500.0,0.00013424,2]
[12249,1714327940003,-500.0,0.00013424,2]
[12251,1714327940021,-500.0,0.00013424,2]
[12253,1714327940040,-963.36,0.00013424,2]
[12255,1714327940060,-500.0,0.00013424,2]
[12257,1714327940079,-548.3,0.00013424,2]
[12259,1714327940111,-542.11,0.00013424,2]
[12260,1714327940121,-500.0,0.00013424,2]
[12261,1714327940131,-688.85,0.00013424,2]
[12263,1714327940151,-2215.33,0.00013424,2]
[12265,1714327940169,-500.0,0.00013424,2]
[12267,1714327940189,-1247.47,0.00013424,2]
[12269,1714327940209,-500.0,0.00013424,2]
[12271,1714327940228,-1997.75,0.00013424,2]
[12273,1714327940248,-1392.83,0.00013424,2]
[12274,1714327940257,-561.44,0.00013424,2]
[12275,1714327940267,-700.68,0.00013424,2]
[12276,1714327940278,-500.0,0.00013424,2]
[12277,1714327940288,-1928.76,0.00013424,2]
[12278,1714327940298,-870.0,0.00013424,2]
[12279,1714327940307,-1000.0,0.00013424,2]
[12280,1714327940316,-1614.43,0.00013424,2]
[12281,1714327940327,-500.0,0.00013424,2]
[12282,1714327940337,-500.0,0.00013424,2]
[12283,1714327940348,-973.03,0.00013424,2]
[12284,1714327940360,-500.0,0.00013424,2]
[12285,1714327940372,-1807.39,0.00013424,2]
[12286,1714327940382,-1618.32,0.00013424,2]
[12287,1714327940392,-518.13,0.00013424,2]
[12288,1714327940402,-500.0,0.00013424,2]
[12289,1714327940412,-1065.37,0.00013424,2]
[12290,1714327940421,-521.03,0.00013424,2]
[12291,1714327940431,-500.0,0.00013424,2]
[12292,1714327940442,-568.18,0.00013424,2]
[12293,1714327940452,-593.64,0.00013424,2]
[12294,1714327940461,-645.7,0.00013424,2]
[12295,1714327940471,-525.3,0.00013424,2]
[12296,1714327940480,-1346.78,0.00013424,2]
[12297,1714327940490,-501.35,0.00013424,2]
[12298,1714327940502,-816.47,0.00013424,2]
[12299,1714327940517,-511.31,0.00013424,2]
[12300,1714327940527,-513.17,0.00013424,2]
[12301,1714327940536,-571.35,0.00013424,2]
[12302,1714327940545,-500.0,0.00013424,2]
[12303,1714327940554,-1221.56,0.00013424,2]